fUSD/lending_fUSD_20240804
["ID","MTS","AMOUNT","RATE_DAILY","PERIOD"]
[334173647,1722807071191,-473.08659042,0.00023178,9]
[334173649,1722807078801,150.5,0.0002325,120]
[334173650,1722807078854,150.5,0.0002325,120]
[334173651,1722807079099,291.5,0.0002324,120]
[334173652,1722807079275,150.71,0.0002324,120]
[334173653,1722807086172,-383.58842425,0.0003,30]
[334173654,1722807086199,-383.58842425,0.0003,30]
[334173655,1722807086242,-4321.33312967,0.00032679,30]
[334173656,1722807086274,-3460.17787999,0.00036,120]
[334173657,1722807086306,-1000.0,0.00036,120]
[334173658,1722807086334,-500.0,0.00039,120]
[334173659,1722807086361,-1412.75929359,0.00039581,30]
[334173660,1722807086387,-209191.65791516,0.0003961,30]
[334173661,1722807086413,-365.36537875,0.0003961,30]
[334173662,1722807086439,-893.8379527,0.0003961,30]
[334173663,1722807086466,-409.81738489,0.000398,90]
[334173664,1722807086493,-190.86213214,0.0004,30]
[334173665,1722807086521,-320513.15427687,0.0004344,30]
[334173666,1722807086551,-1000.0,0.00043453,30]
[334173667,1722807086581,-657.78562,0.00043488,30]
[334173668,1722807086606,-30000.0,0.000435,120]
[334173669,1722807086631,-100000.0,0.000435,120]
[334173670,1722807086656,-2110.0,0.000435,30]
[334173671,1722807086681,-19333.0,0.000435,120]
[334173672,1722807086706,-19333.0,0.000435,120]
[334173673,1722807086731,-19333.0,0.000435,120]
[334173674,1722807086756,-19333.0,0.000435,120]
[334173675,1722807086782,-1250.0,0.00043561,30]
[334173676,1722807086807,-2024.0,0.00043561,90]
[334173677,1722807086832,-187.56666667,0.00043589,120]
[334173678,1722807086856,-3233.0,0.000436,120]
[334173679,1722807086881,-1000.0,0.00043629,30]
[334173680,1722807086905,-657.78562,0.00043688,30]
[334173681,1722807086931,-2024.0,0.00043698,90]
[334173682,1722807086959,-2225.64373137,0.000437,120]
[334173683,1722807086984,-2327.10563115,0.000437,60]
[334173684,1722807087008,-7455.72456545,0.00043742,120]
[334173685,1722807087038,-3005.45839406,0.000438,120]
[334173686,1722807087062,-866.23325839,0.000438,120]
[334173687,1722807087086,-1866.0,0.000438,30]
[334173688,1722807087113,-465.52349017,0.000438,30]
[334173689,1722807087137,-416.47111189,0.000438,120]
[334173690,1722807087503,-1080.99997746,0.000438,111]
[334173691,1722807087529,-1000.0,0.00043804,30]
[334173692,1722807087556,-500.0,0.00043835,60]
[334173693,1722807087581,-500.0,0.00043835,60]
[334173694,1722807087606,-500.0,0.00043835,60]
[334173695,1722807087631,-500.0,0.00043835,60]
[334173696,1722807087656,-500.0,0.00043835,60]
[334173697,1722807087682,-500.0,0.00043835,60]
[334173698,1722807087707,-500.0,0.00043835,60]
[334173699,1722807087732,-546.55,0.00043835,60]
[334173700,1722807087756,-500.0,0.00043835,60]
[334173701,1722807087783,-500.0,0.00043835,60]
[334173702,1722807087808,-500.0,0.00043835,60]
[334173703,1722807087834,-500.0,0.00043835,60]
[334173704,1722807087864,-500.0,0.00043835,60]
[334173705,1722807087889,-500.0,0.00043835,60]
[334173706,1722807087916,-500.0,0.00043835,60]
[334173707,1722807087944,-1458.33,0.00043835,120]
[334173708,1722807087969,-1442.54,0.00043835,120]
[334173709,1722807087996,-1442.54,0.00043835,120]
[334173710,1722807088021,-1442.54,0.00043835,120]
[334173711,1722807088048,-1442.54,0.00043835,120]
[334173712,1722807088074,-1442.54,0.00043835,120]
[334173713,1722807088099,-1442.54,0.00043835,120]
[334173714,1722807088126,-1442.54,0.00043835,120]
[334173715,1722807088151,-1442.54,0.00043835,120]
[334173716,1722807088175,-1442.54,0.00043835,120]
[334173717,1722807088200,-1442.54,0.00043835,120]
[334173718,1722807088225,-1442.54,0.00043835,120]
[334173719,1722807088251,-1442.54,0.00043835,120]
[334173720,1722807088277,-1442.54,0.00043835,120]
[334173721,1722807088306,-1442.54,0.00043835,120]
[334173722,1722807088334,-2024.0,0.00043835,90]
[334173723,1722807088362,-1442.54,0.00043835,120]
[334173724,1722807088391,-1442.54,0.00043835,120]
[334173725,1722807088421,-1442.54,0.00043835,120]
[334173726,1722807088450,-1442.54,0.00043835,120]
[334173727,1722807088480,-1442.54,0.00043835,120]
[334173728,1722807088509,-1442.54,0.00043835,120]
[334173729,1722807088540,-1442.54,0.00043835,120]
[334173730,1722807088569,-1442.54,0.00043835,120]
[334173731,1722807088599,-1442.54,0.00043835,120]
[334173732,1722807088627,-1442.76088919,0.00043835,120]
[334173733,1722807088656,-200.0,0.00043836,60]
[334173734,1722807089115,13413.22366267,0.0003961,30]
[334173735,1722807089823,2000.0,0.00041,30]
[334173736,1722807090464,1172.69965906,0.00041,30]
[334173748,1722807182126,-2236.71736964,0.00035069,60]
[334173749,1722807182166,-1000.0,0.00036,120]
[334173750,1722807182202,-2236.71736964,0.00036569,60]
[334173751,1722807182239,-2236.71736964,0.00038069,60]
[334173752,1722807182279,-461.27607361,0.00039,120]
[334173753,1722807182314,-2236.71736964,0.00039569,60]
[334173754,1722807182352,-2236.71736964,0.00041069,60]
[334173755,1722807182392,-2236.71736964,0.00042569,60]
[334173756,1722807182428,-12496.28161476,0.00043,120]
[334173757,1722807182468,-1200.0,0.00043836,120]
[334173758,1722807182502,-10000.0,0.000439,120]
[334173759,1722807182534,-153.57347158,0.000439,120]
[334173760,1722807182569,-153.57347155,0.000439,120]
[334173761,1722807182602,-153.57347155,0.000439,120]
[334173762,1722807182636,-153.57347155,0.000439,120]
[334173763,1722807182668,-153.57347155,0.000439,120]
[334173764,1722807182699,-153.57347155,0.000439,120]
[334173765,1722807182737,-153.57347155,0.000439,120]
[334173766,1722807182768,-153.57347155,0.000439,120]
[334173767,1722807182800,-153.57347155,0.000439,120]
[334173768,1722807182832,-2024.0,0.00043972,90]
[334173769,1722807182866,-1000.0,0.00043979,120]
[334173770,1722807182906,-1000.0,0.00043999,120]
[334173771,1722807182939,-5000.0,0.00044,120]
[334173772,1722807182973,-1000.0,0.00044,120]
[334173773,1722807183005,-1000.0,0.00044,60]
[334173774,1722807183039,-150.0,0.00044,75]
[334173775,1722807183074,-505.27425415,0.00044,60]
[334173776,1722807183106,-405.8184382,0.00044,120]
[334173777,1722807183137,-20000.0,0.00044,120]
[334173778,1722807183169,-2500.0,0.00044,120]
[334173779,1722807183201,-2236.71736964,0.00044069,60]
[334173780,1722807183236,-150.0,0.00044105,120]
[334173781,1722807183269,-500.0,0.00044109,60]
[334173782,1722807183304,-189.65596498,0.00044109,60]
[334173783,1722807183338,-1305.94,0.00044109,60]
[334173784,1722807183371,-1664.12,0.00044109,60]
[334173785,1722807183404,-7955.7,0.00044109,60]
[334173786,1722807183441,-761.42,0.00044109,60]
[334173787,1722807183474,-500.0,0.00044109,60]
[334173788,1722807183507,-1052.11,0.00044109,60]
[334173789,1722807183540,-593.1,0.00044109,60]
[334173790,1722807183572,-500.0,0.00044109,60]
[334173791,1722807183604,-299.04821886,0.00044109,60]
[334173792,1722807183636,-500.0,0.00044109,60]
[334173793,1722807183667,-500.0,0.00044109,60]
[334173794,1722807183698,-500.0,0.00044109,60]
[334173795,1722807183728,-500.0,0.00044109,60]
[334173796,1722807183761,-500.0,0.00044109,60]
[334173797,1722807183794,-500.0,0.00044109,60]
[334173798,1722807183826,-500.0,0.00044109,60]
[334173799,1722807183858,-500.0,0.00044109,60]
[334173800,1722807183889,-500.0,0.00044109,60]
[334173801,1722807183920,-261.42,0.00044109,60]
[334173802,1722807183951,-500.0,0.00044109,60]
[334173803,1722807183982,-1250.0,0.00044109,120]
[334173804,1722807184013,-2024.0,0.00044109,90]
[334173805,1722807184045,-1000.0,0.00044154,120]
[334173806,1722807184077,-2553.08084004,0.000442,120]
[334173807,1722807184107,-2553.08084002,0.000442,120]
[334173808,1722807184137,-2553.08084002,0.000442,120]
[334173809,1722807184169,-2553.08084002,0.000442,120]
[334173810,1722807184203,-2553.08084002,0.000442,120]
[334173811,1722807184233,-1852.45971772,0.00044246,90]
[334173812,1722807184266,-1000.0,0.00044329,120]
[334173813,1722807184297,-1305.94,0.00044383,60]
[334173814,1722807184328,-1664.12,0.00044383,60]
[334173815,1722807184358,-7955.7,0.00044383,60]
[334173816,1722807184390,-761.42,0.00044383,60]
[334173817,1722807184421,-500.0,0.00044383,60]
[334173818,1722807184456,-1052.11,0.00044383,60]
[334173819,1722807184489,-500.0,0.00044383,60]
[334173820,1722807184521,-500.0,0.00044383,60]
[334173821,1722807184555,-500.0,0.00044383,60]
[334173822,1722807184587,-500.0,0.00044383,60]
[334173823,1722807184618,-500.0,0.00044383,60]
[334173824,1722807184650,-500.0,0.00044383,60]
[334173825,1722807184682,-500.0,0.00044383,60]
[334173826,1722807184713,-500.0,0.00044383,60]
[334173827,1722807184744,-500.0,0.00044383,60]
[334173828,1722807184775,-500.0,0.00044383,60]
[334173829,1722807184806,-187.56666667,0.00044438,120]
[334173830,1722807184838,-150.0,0.00044497,120]
[334173831,1722807184871,-1000.0,0.00044505,120]
[334173832,1722807184902,-151.0,0.00044521,120]
[334173833,1722807184933,-1305.94,0.00044657,60]
[334173834,1722807184966,-1664.12,0.00044657,60]
[334173835,1722807185831,-7955.7,0.00044657,60]
[334173836,1722807185912,-761.42,0.00044657,60]
[334173837,1722807185944,-500.0,0.00044657,60]
[334173838,1722807185972,-1052.11,0.00044657,60]
[334173839,1722807185999,-500.0,0.00044657,60]
[334173840,1722807186030,-500.0,0.00044657,60]
[334173841,1722807186056,-500.0,0.00044657,60]
[334173843,1722807186304,-552.11,0.00044657,60]
[334173844,1722807186335,-500.0,0.00044657,60]
[334173845,1722807186363,-305.94,0.00044657,60]
[334173846,1722807186394,-500.0,0.00044657,60]
[334173847,1722807186422,-500.0,0.00044657,60]
[334173848,1722807186452,-1458.33,0.00044657,120]
[334173849,1722807186480,-1000.0,0.0004468,120]
[334173850,1722807186510,-1269.25677654,0.00044775,120]
[334173851,1722807186537,-1007.17953584,0.000448,120]
[334173852,1722807186566,-241.66988184,0.000448,120]
[334173853,1722807186595,-1000.0,0.00044855,120]
[334173854,1722807186624,-150.0,0.00044866,120]
[334173855,1722807186651,-175.3919915,0.000449,120]
[334173856,1722807186678,-207.42819873,0.000449,120]
[334173857,1722807186709,-1305.94,0.00044931,60]
[334173858,1722807186736,-1664.12,0.00044931,60]
[334173859,1722807186763,-7955.7,0.00044931,60]
[334173860,1722807186790,-761.42,0.00044931,60]
[334173861,1722807186819,-500.0,0.00044931,60]
[334173862,1722807186846,-1052.11,0.00044931,60]
[334173863,1722807186889,-500.0,0.00044931,60]
[334173864,1722807186918,-500.0,0.00044931,60]
[334173865,1722807186947,-362.90596902,0.00044931,60]
[334173866,1722807186977,-500.0,0.00044931,60]
[334173867,1722807187008,-500.0,0.00044931,60]
[334173868,1722807187037,-500.0,0.00044931,60]
[334173869,1722807187069,-1250.0,0.00044931,120]
[334173870,1722807187098,-220.94862334,0.0004499,120]
[334173871,1722807187129,-1000.0,0.00045,120]
[334173872,1722807187158,-707.1012783,0.00045,120]
[334173873,1722807187185,-150.0,0.00045,85]
[334173874,1722807187213,-1620.461,0.00045,111]
[334173875,1722807187240,-2115.35441461,0.00045,120]
[334173876,1722807187267,-880.43949403,0.00045,120]
[334173877,1722807187294,-548.56201677,0.00045,120]
[334173878,1722807187323,-216.13038484,0.00045,120]
[334173879,1722807187350,-2000.0,0.00045,120]
[334173880,1722807187377,-200.0,0.00045,120]
[334173881,1722807187406,-2000.0,0.00045,90]
[334173882,1722807187435,-2000.0,0.00045,90]
[334173883,1722807187465,-2000.0,0.00045,90]
[334173884,1722807187493,-2000.0,0.00045,90]
[334173885,1722807187522,-2000.0,0.00045,90]
[334173886,1722807187551,-2000.0,0.00045,90]
[334173887,1722807187578,-289.21,0.00045,120]
[334173888,1722807187606,-150.0,0.00045,75]
[334173889,1722807187634,-2282.0,0.00045,120]
[334173890,1722807187662,-2605.424477,0.00045,120]
[334173891,1722807187691,-222.79437386,0.00045,120]
[334173892,1722807187720,-2624.0,0.00045,120]
[334173893,1722807187748,-500000.0,0.00045,120]
[334173894,1722807187778,-150.0,0.00045,120]
[334173895,1722807187808,-26259.14591786,0.00045,60]
[334173896,1722807187838,-2981.16257541,0.00045,120]
[334173897,1722807187867,-581.88170857,0.00045,120]
[334173898,1722807187895,-203.42519357,0.00045,120]
[334173899,1722807187923,-10000.0,0.00045,120]
[334173900,1722807187951,-2267.7634452,0.00045,60]
[334173901,1722807187984,-2500.0,0.00045,120]
[334173902,1722807188012,-5000.0,0.00045,120]
[334173903,1722807188101,-1537.81468444,0.00045,90]
[334173904,1722807188130,-3790.2378273,0.00045,120]
[334173905,1722807188158,-195.18435671,0.00045,120]
[334173906,1722807188184,-2481.0939065,0.00045,120]
[334173907,1722807188213,-163.97996185,0.00045,120]
[334173908,1722807188241,-152.94088601,0.00045,120]
[334173909,1722807188270,-9498.1906257,0.00045,60]
[334173910,1722807188297,-1000.0,0.0004503,120]
[334173911,1722807188325,-150.0,0.00045076,120]
[334173912,1722807188355,-150.0,0.00045103,120]
[334173913,1722807188383,-1305.94,0.00045205,60]
[334173914,1722807188412,-1664.12,0.00045205,60]
[334173915,1722807188440,-7955.7,0.00045205,60]
[334173916,1722807188469,-761.42,0.00045205,60]
[334173917,1722807188498,-500.0,0.00045205,60]
[334173918,1722807188526,-1052.11,0.00045205,60]
[334173919,1722807188555,-500.0,0.00045205,60]
[334173920,1722807188585,-500.0,0.00045205,60]
[334173921,1722807188615,-500.0,0.00045205,60]
[334173922,1722807188644,-500.0,0.00045205,60]
[334173923,1722807188673,-500.0,0.00045205,60]
[334173924,1722807188702,-1736.01981409,0.00045205,120]
[334173925,1722807188731,-187.56666667,0.00045288,120]
[334173926,1722807188759,-1305.94,0.00045479,60]
[334173927,1722807188788,-1664.12,0.00045479,60]
[334173928,1722807188816,-7955.7,0.00045479,60]
[334173929,1722807188845,-761.42,0.00045479,60]
[334173930,1722807188874,-156.35,0.00045479,60]
[334173931,1722807188905,-1052.11,0.00045479,60]
[334173932,1722807188938,-500.0,0.00045479,60]
[334173933,1722807188971,-156.35,0.00045479,60]
[334173934,1722807189007,-500.0,0.00045479,60]
[334173935,1722807189040,-500.0,0.00045479,60]
[334173936,1722807189073,-1458.33,0.00045479,120]
[334173937,1722807189103,-2236.71736964,0.00045569,60]
[334173938,1722807189130,-383.16979416,0.000456,120]
[334173939,1722807189158,-1305.94,0.00045753,60]
[334173940,1722807189185,-1664.12,0.00045753,60]
[334173941,1722807189212,-7955.7,0.00045753,60]
[334173942,1722807189240,-761.42,0.00045753,60]
[334173943,1722807189268,-1052.11,0.00045753,60]
[334173944,1722807189296,-500.0,0.00045753,60]
[334173945,1722807189324,-209.63731866,0.00045753,60]
[334173946,1722807189351,-500.0,0.00045753,60]
[334173947,1722807189379,-1250.0,0.00045753,120]
[334173948,1722807189408,-26060.10610944,0.0004588,60]
[334173949,1722807189436,-198.86282492,0.000459,60]
[334173950,1722807189464,-151.0,0.00045973,120]
[334173951,1722807189492,-1000.0,0.00046,120]
[334173952,1722807189519,-1000.0,0.00046,120]
[334173953,1722807189546,-1000000.0,0.00046,120]
[334173954,1722807189573,-1000.0,0.00046,120]
[334173955,1722807189599,-20000.0,0.00046,120]
[334173956,1722807189625,-500000.0,0.00046,120]
[334173957,1722807189651,-641.15503948,0.00046,120]
[334173958,1722807189677,-169.7,0.00046,96]
[334173959,1722807189702,-15000.0,0.00046,120]
[334173960,1722807189729,-5628.7554923,0.00046,120]
[334173961,1722807189755,-3626.29117993,0.00046,120]
[334173962,1722807189782,-185.89501287,0.00046,120]
[334173963,1722807189808,-1305.94,0.00046027,60]
[334173964,1722807189835,-1664.12,0.00046027,60]
[334173965,1722807189862,-7955.7,0.00046027,60]
[334173966,1722807189890,-761.42,0.00046027,60]
[334173967,1722807189918,-1052.11,0.00046027,60]
[334173968,1722807189946,-500.0,0.00046027,60]
[334173969,1722807189974,-500.0,0.00046027,60]
[334173970,1722807190001,-187.56666667,0.00046137,120]
[334173971,1722807190030,-1305.94,0.00046301,120]
[334173972,1722807190058,-1664.12,0.00046301,120]
[334173973,1722807190084,-7955.7,0.00046301,120]
[334173974,1722807190110,-761.42,0.00046301,120]
[334173975,1722807190137,-1052.11,0.00046301,120]
[334173976,1722807190164,-361.82,0.00046301,120]
[334173977,1722807190191,-500.0,0.00046301,120]
[334173978,1722807190219,-1458.33,0.00046301,120]
[334173979,1722807190246,-7912.79,0.00046357,113]
[334173980,1722807190274,-1019.44253657,0.000465,120]
[334173981,1722807190302,-862.30084951,0.000465,120]
[334173982,1722807190330,-1305.94,0.00046575,120]
[334173983,1722807190359,-1664.12,0.00046575,120]
[334173984,1722807190387,-7955.7,0.00046575,120]
[334173985,1722807190416,-761.42,0.00046575,120]
[334173986,1722807190444,-1052.11,0.00046575,120]
[334173987,1722807190478,-500.0,0.00046575,120]
[334173988,1722807190507,-1250.0,0.00046575,120]
[334173989,1722807190535,-200.0,0.00046575,60]
[334173990,1722807190563,-1305.94,0.00046849,120]
[334173991,1722807190591,-1664.12,0.00046849,120]
[334173992,1722807190618,-7955.7,0.00046849,120]
[334173993,1722807190644,-761.42,0.00046849,120]
[334173994,1722807190672,-1052.11,0.00046849,120]
[334173995,1722807190699,-268.92499689,0.00046849,120]
[334173996,1722807190726,-187.56666667,0.00046986,120]
[334173997,1722807190753,-1000000.0,0.00047,120]
[334173998,1722807190780,-2000.1664601,0.00047,120]
[334173999,1722807190806,-1000.0,0.00047,120]
[334174000,1722807190832,-500000.0,0.00047,120]
[334174001,1722807190859,-31291.45440518,0.00047,120]
[334174002,1722807190889,-2236.71736964,0.00047069,60]
[334174003,1722807190918,-1305.94,0.00047123,120]
[334174004,1722807190947,-1664.12,0.00047123,120]
[334174005,1722807190975,-7955.7,0.00047123,120]
[334174006,1722807191001,-761.42,0.00047123,120]
[334174007,1722807191162,-1052.11,0.00047123,120]
[334174008,1722807191191,-1458.33,0.00047123,120]
[334174009,1722807191219,-1305.94,0.00047397,120]
[334174010,1722807191246,-1664.12,0.00047397,120]
[334174011,1722807191273,-7955.7,0.00047397,120]
[334174012,1722807191301,-761.42,0.00047397,120]
[334174013,1722807191331,-1052.11,0.00047397,120]
[334174014,1722807191359,-1250.0,0.00047397,120]
[334174015,1722807191387,-151.0,0.00047425,120]
[334174016,1722807191415,-330.50455927,0.000475,120]
[334174017,1722807191444,-1305.94,0.00047671,120]
[334174018,1722807191473,-1664.12,0.00047671,120]
[334174019,1722807191502,-7955.7,0.00047671,120]
[334174020,1722807191530,-761.42,0.00047671,120]
[334174021,1722807191560,-1052.11,0.00047671,120]
[334174022,1722807191589,-158.4802903,0.000478,90]
[334174023,1722807191619,-187.56666667,0.00047836,120]
[334174024,1722807191649,-1305.94,0.00047945,120]
[334174025,1722807191677,-1664.12,0.00047945,120]
[334174026,1722807191705,-7955.7,0.00047945,120]
[334174027,1722807191732,-761.42,0.00047945,120]
[334174028,1722807191759,-1052.11,0.00047945,120]
[334174029,1722807191787,-1458.33,0.00047945,120]
[334174030,1722807191814,-1000.0,0.00047999,120]
[334174031,1722807191844,-1000000.0,0.00048,120]
[334174032,1722807191870,-1000.0,0.00048,120]
[334174033,1722807191898,-1000.0,0.00048,60]
[334174034,1722807191926,-50000.0,0.00048,120]
[334174035,1722807191952,-160.0,0.00048,90]
[334174036,1722807191983,-1168.99,0.00048,120]
[334174037,1722807192012,-8828.04475682,0.00048,120]
[334174038,1722807192039,-576.76668239,0.00048,120]
[334174039,1722807192068,-983.11998603,0.00048,120]
[334174040,1722807192094,-1845.75287072,0.00048,120]
[334174041,1722807192122,-500000.0,0.00048,120]
[334174042,1722807192152,-5056.35532984,0.00048,120]
[334174043,1722807192178,-5628.7554923,0.00048,120]
[334174044,1722807192207,-3626.29117994,0.00048,120]
[334174045,1722807192234,-1305.94,0.00048219,120]
[334174046,1722807192262,-1664.12,0.00048219,120]
[334174047,1722807192288,-7955.7,0.00048219,120]
[334174048,1722807192315,-761.42,0.00048219,120]
[334174049,1722807192342,-1052.11,0.00048219,120]
[334174050,1722807192370,-1250.0,0.00048219,120]
[334174051,1722807192396,-342849.13812646,0.00048427,120]
[334174053,1722807201679,-503.212228,0.00029088,120]
[334174054,1722807201708,-500.0,0.00029688,120]
[334174055,1722807201739,-1000.0,0.00030046,120]
[334174056,1722807201766,-500.0,0.00030288,120]
[334174057,1722807201808,-500.0,0.00032688,120]
[334174058,1722807201844,-1000.0,0.00038356,120]
[334174059,1722807201881,-1000.0,0.00042342,120]
[334174060,1722807201911,-1000.0,0.00043439,120]
[334174061,1722807201941,-1000.0,0.00044344,120]
[334174062,1722807201974,-1000.0,0.00045248,120]
[334174063,1722807202001,-1000.0,0.00046153,120]
[334174064,1722807202030,-1000.0,0.00047057,120]
[334174065,1722807202057,-1000.0,0.00047962,120]
[334174066,1722807202085,-699578.58187354,0.00048427,120]
[334174067,1722807202112,-46727.16,0.0004844,120]
[334174068,1722807202139,-220000.0,0.0004844,120]
[334174069,1722807202166,-1305.94,0.00048493,120]
[334174070,1722807202192,-1664.12,0.00048493,120]
[334174071,1722807202218,-7955.7,0.00048493,120]
[334174072,1722807202245,-761.42,0.00048493,120]
[334174073,1722807202273,-1052.11,0.00048493,120]
[334174074,1722807202301,-3000.0,0.000485,120]
[334174075,1722807202329,-2236.71636964,0.00048569,60]
[334174076,1722807202361,-187.56666667,0.00048685,120]
[334174077,1722807202391,-588.48002142,0.000487,120]
[334174078,1722807202425,-1305.94,0.00048767,120]
[334174079,1722807202454,-1664.12,0.00048767,120]
[334174080,1722807202483,-7955.7,0.00048767,120]
[334174081,1722807202511,-761.42,0.00048767,120]
[334174082,1722807202540,-1052.11,0.00048767,120]
[334174083,1722807202570,-1458.33,0.00048767,120]
[334174084,1722807202598,-1439.16,0.000488,120]
[334174085,1722807202626,-799.28029939,0.000488,120]
[334174086,1722807202802,-1000.0,0.00048866,120]
[334174087,1722807202831,-60000.0,0.0004887,120]
[334174088,1722807202862,-197.805506,0.0004887,120]
[334174089,1722807202890,-151.0,0.00048877,120]
[334174090,1722807202918,-239.13934746,0.000489,120]
[334174091,1722807202945,-410.0,0.00048966,120]
[334174092,1722807202974,-1000.0,0.00048999,120]
[334174093,1722807203003,-155.0,0.00049,120]
[334174094,1722807203034,-1569.99,0.00049,90]
[334174095,1722807203063,-41077.5082311,0.00049,120]
[334174096,1722807203091,-203500.0,0.00049,120]
[334174097,1722807203118,-2124.05890561,0.00049,120]
[334174098,1722807203145,-823.90283609,0.00049,120]
[334174099,1722807203175,-900000.0,0.00049,120]
[334174100,1722807203202,-3114.39428716,0.00049,120]
[334174101,1722807203233,-500000.0,0.00049,120]
[334174102,1722807203266,-1305.94,0.00049041,120]
[334174103,1722807203295,-1664.12,0.00049041,120]
[334174104,1722807203327,-7955.7,0.00049041,120]
[334174105,1722807203356,-761.42,0.00049041,120]
[334174106,1722807203385,-1052.11,0.00049041,120]
[334174107,1722807203415,-1250.0,0.00049041,120]
[334174108,1722807203444,-1305.94,0.00049315,120]
[334174109,1722807203474,-1664.12,0.00049315,120]
[334174110,1722807203503,-7955.7,0.00049315,120]
[334174111,1722807203531,-761.42,0.00049315,120]
[334174112,1722807203559,-1052.11,0.00049315,120]
[334174113,1722807203588,-200.0,0.00049315,60]
[334174114,1722807203616,-127393.12,0.00049315,90]
[334174115,1722807204047,217.13731795,0.00049315,60]
[334174116,1722807204083,1830.03943753,0.00049315,60]
[334174117,1722807204263,1000.0,0.00047999,120]
[334174118,1722807204521,507.866903,0.00028455,120]
[334174119,1722807204651,500.0,0.00029055,120]
[334174120,1722807210763,500.0,0.00030046,120]
[334174121,1722807210850,150.0,0.00042099,120]
[334174122,1722807213409,1000.0,0.000493,120]
[334174124,1722807392643,400.0,0.0002614,120]
[334174126,1722807560298,1000.0,0.00027,120]
[334174127,1722807563942,150.5,0.00023168,120]
[334174128,1722807564404,150.5,0.00023158,120]
[334174129,1722807564893,150.5,0.00023148,120]
[334174130,1722807565347,150.5,0.0002398,120]
[334174131,1722807566373,219.57,0.0002397,120]
[334174132,1722807582387,1000.0,0.0002,60]
[334174133,1722807588162,1000.0,0.00021,60]
[334174134,1722807592951,1000.0,0.00022,60]
[334174135,1722807612683,1000.0,0.00023013,60]
[334174136,1722807612910,1000.0,0.00023095,60]
[334174137,1722807613205,1000.0,0.00023178,60]
[334174138,1722807613470,1000.0,0.0002326,60]
[334174139,1722807613721,1000.0,0.00023342,60]
[334174140,1722807613996,1000.0,0.00023424,60]
[334174141,1722807614257,1000.0,0.00023506,60]
[334174142,1722807614555,1000.0,0.00023589,60]
[334174143,1722807614900,1000.0,0.00023671,60]
[334174144,1722807615123,1000.0,0.00023753,60]
[334174145,1722807615388,1000.0,0.00023835,60]
[334174146,1722807615687,1000.0,0.00023917,60]
[334174147,1722807615924,1000.0,0.00024,60]
[334174148,1722807616194,1000.0,0.00024082,60]
[334174149,1722807616480,1000.0,0.00024164,60]
[334174150,1722807616739,1000.0,0.00024246,60]
[334174151,1722807617030,1000.0,0.00024328,60]
[334174152,1722807617559,1000.0,0.0002441,60]
[334174153,1722807619954,340.22056565,0.00024493,60]
[334174154,1722807650421,1000.0,0.00027,120]
[334174155,1722807652912,1000.0,0.00027,120]
[334174156,1722807654217,1000.0,0.00027,120]
[334174157,1722807655543,1000.0,0.00027,120]
[334174158,1722807656933,1000.0,0.00027,120]
[334174159,1722807658576,1000.0,0.00027,120]
[334174160,1722807659895,1000.0,0.00027,120]
[334174161,1722807672960,150.5,0.00023168,120]
[334174162,1722807673762,291.5,0.00023158,120]